bitfinex-derivatives/quotes_ETHF0:USTF0_20250220
["timestamp","ask_amount","ask_price","bid_price","bid_amount"]
[1740017444563,3.2078,2727.9,2727.3,3.5091]
[1740017444757,3.94103,2727.9,2727.4,0.73334]
[1740017445061,3.2078,2727.9,2727.3,3.5091]
[1740017445364,1.7088,2728.2,2727.8,3.2078]
[1740017445763,2.44194,2728.2,2727.8,3.2078]
[1740017446056,2.44194,2728.2,2727.8,4.3388]
[1740017446057,1.7088,2728.2,2727.8,4.3388]
[1740017446363,2.44195,2728.2,2727.8,4.3388]
[1740017446756,1.7088,2728.2,2727.8,4.9288]
[1740017447255,1.7088,2728.2,2728.1,3.2078]
[1740017448057,1.1526,2728.2,2728.1,3.2078]
[1740017448360,0.5451,2728.5,2728.1,3.2078]
[1740017448558,1.27816,2728.5,2728.1,3.2078]
[1740017448764,0.5451,2728.5,2728.1,3.2078]
[1740017449065,0.7331,2728.4,2728.1,3.2078]
[1740017449367,0.73314,2728.2,2728.1,3.2078]
[1740017449557,0.5451,2728.5,2728.1,3.2078]
[1740017449757,0.7331,2728.4,2728.1,3.2078]
[1740017449965,0.5451,2728.5,2728.1,3.2078]
[1740017450164,0.73312,2728.3,2728.1,3.2078]
[1740017450663,0.5451,2728.5,2728.1,3.2078]
[1740017450664,0.7331,2728.4,2728.1,3.2078]
[1740017450964,0.73312,2728.3,2728.1,3.2078]
[1740017451155,0.5451,2728.5,2728.1,3.2078]
[1740017451361,1.28464,2728.2,2728.1,3.2078]
[1740017451563,0.73316,2728.1,2728.0,0.00550529]
[1740017452061,1.27206,2728.1,2728.0,0.00550529]
[1740017454668,0.5389,2728.1,2728.0,0.00550529]
[1740017454857,0.5515,2728.2,2728.0,0.00550529]
[1740017455063,1.28466,2728.2,2728.0,0.00550529]
[1740017455764,1.30379,2728.4,2728.0,0.73868529]
[1740017455963,1.30379,2728.4,2728.1,1.7]
[1740017456566,0.5707,2728.4,2728.2,3.2078]
[1740017457068,0.5451,2728.5,2728.2,3.2078]
[1740017457266,1.86372,2728.7,2728.2,3.94092]
[1740017457466,2.42442,2728.7,2728.2,3.94092]
[1740017457971,0.73303,2728.6,2728.2,3.94092]
[1740017458466,1.6914,2728.7,2728.2,3.2078]
[1740017458667,0.73306,2728.5,2728.2,3.2078]
[1740017458865,0.7331,2728.4,2728.2,3.2078]
[1740017459469,1.6914,2728.7,2728.2,3.2078]
[1740017459868,0.7331,2728.4,2728.2,3.2078]
[1740017461372,1.6914,2728.7,2728.2,3.2078]
[1740017461871,0.73311,2728.3,2728.2,3.2078]
[1740017462370,1.6914,2728.7,2728.1,1.1232]
[1740017462572,0.73309,2728.4,2728.2,3.2078]
[1740017462872,0.73311,2728.3,2728.2,3.2078]
[1740017463172,0.73311,2728.3,2728.0,0.00550529]
[1740017463466,0.73309,2728.4,2728.0,0.73868529]
[1740017463671,0.73307,2728.5,2728.2,3.2078]
[1740017463871,1.6914,2728.7,2728.3,1.096]
[1740017464067,0.73307,2728.5,2728.3,1.6654]
[1740017464371,1.6914,2728.7,2728.3,1.6654]
[1740017464565,0.73308,2728.4,2728.3,1.6654]
[1740017465368,0.73308,2728.4,2728.3,1.1251]
[1740017465567,1.6914,2728.7,2728.2,3.2078]
[1740017466073,0.7331,2728.4,2728.2,3.2078]
[1740017466768,1.6914,2728.7,2728.2,3.2078]
[1740017466769,0.73311,2728.3,2728.2,3.2078]
[1740017467672,1.6914,2728.7,2728.2,3.2078]
[1740017467868,0.73311,2728.3,2728.2,3.2078]
[1740017468463,0.7331,2728.4,2728.2,3.2078]
[1740017468775,0.73307,2728.5,2728.2,3.2078]
[1740017468975,0.7331,2728.4,2728.2,3.2078]
[1740017469273,0.73311,2728.3,2728.2,3.2078]
[1740017469971,1.6914,2728.7,2728.2,3.2078]
[1740017470368,0.73311,2728.3,2728.2,3.2078]
[1740017474881,3.2078,2728.4,2728.0,0.00550529]
[1740017475065,3.94096,2728.1,2728.0,0.00550529]
[1740017475471,0.73333,2727.5,2727.4,3.2078]
[1740017477274,0.73338,2727.3,2727.2,0.00550529]
[1740017478674,6.0,2727.3,2726.8,3.2078]
[1740017478972,0.73357,2726.6,2726.4,0.5774]
[1740017479375,0.73357,2726.6,2726.3,3.2078]
[1740017479578,0.7336,2726.5,2726.3,3.2078]
[1740017479877,2.367,2727.0,2726.3,3.2078]
[1740017480478,0.73361,2726.5,2726.3,3.2078]
[1740017480674,0.73362,2726.4,2726.3,3.2078]
[1740017481468,6.1678,2726.9,2726.1,0.00550529]
[1740017481779,0.73368,2726.2,2726.1,0.00550529]
[1740017491087,1.30138,2726.2,2726.1,0.00550529]
[1740017496986,3.66938,2726.2,2726.1,0.00550529]
[1740017497291,0.73381,2725.7,2725.6,3.7542]
[1740017497490,0.73381,2725.7,2725.6,3.2078]
[1740017497789,0.5859,2725.9,2725.3,9.44476388]
[1740017498090,0.73389,2725.4,2725.3,9.44476388]
[1740017498389,0.5688,2725.8,2725.3,9.45026917]
[1740017498693,0.73389,2725.4,2725.3,9.45026917]
[1740017507492,0.73387,2725.5,2725.3,9.45026917]
[1740017509091,0.00550529,2725.9,2725.8,0.73378]
[1740017509292,3.2078,2726.5,2725.8,3.2078]
[1740017509495,3.2078,2726.5,2725.8,5.5768]
[1740017509689,3.2078,2726.5,2725.9,1.0994]
[1740017509894,3.2078,2726.5,2726.0,0.5389]
[1740017510392,3.21330529,2726.5,2726.0,0.5389]
[1740017510590,0.7337,2726.1,2726.0,0.5389]
[1740017510791,3.21330529,2726.5,2726.0,0.5389]
[1740017510991,0.73369,2726.2,2726.0,0.5389]
[1740017511299,0.7337,2726.1,2726.0,0.5389]
[1740017511496,3.21330529,2726.5,2726.0,0.5389]
[1740017511697,0.73369,2726.2,2726.0,0.5389]
[1740017511898,0.7337,2726.1,2726.0,0.5389]
[1740017512094,3.21330529,2726.5,2726.0,0.5389]
[1740017512392,0.73369,2726.2,2726.0,0.5389]
[1740017512591,3.21330529,2726.5,2726.0,0.5389]
[1740017512993,0.73369,2726.2,2726.0,0.5389]
[1740017513195,3.21330529,2726.5,2726.0,0.5389]
[1740017513401,0.73365,2726.3,2726.0,0.5389]
[1740017514198,3.21330529,2726.5,2726.0,0.5389]
[1740017514398,0.73364,2726.4,2726.0,1.27263]
[1740017514799,0.73362,2726.4,2726.0,1.27263]
[1740017515101,0.00550529,2726.5,2726.2,3.2078]
[1740017515695,0.00550529,2726.5,2726.3,0.73364]
[1740017515900,0.00550529,2726.5,2726.4,1.1563]
[1740017517409,0.73909529,2726.5,2726.4,1.1563]
[1740017517598,0.73368,2726.2,2726.0,0.5503]
[1740017517797,0.73367,2726.3,2726.0,0.5503]
[1740017518901,0.73367,2726.3,2726.0,1.28403]
[1740017519103,0.5687,2726.4,2726.0,0.5503]
[1740017519305,0.55580529,2726.5,2726.2,3.2078]
[1740017520511,1.28941529,2726.5,2726.2,3.2078]
[1740017520707,0.00550529,2726.5,2726.3,0.73363]
[1740017520914,0.00550529,2726.5,2726.4,1.31202]
[1740017521307,0.00550529,2726.5,2726.4,0.5784]
[1740017521810,0.73909529,2726.5,2726.4,0.5784]
[1740017523011,0.00550529,2726.5,2726.2,3.2078]
[1740017523312,0.73362,2726.4,2726.2,3.2078]
[1740017523814,0.73911529,2726.5,2726.2,3.2078]
[1740017524213,0.00550529,2726.5,2726.2,3.2078]
[1740017524511,0.00550529,2726.5,2726.3,0.73364]
[1740017525011,0.00550529,2726.5,2726.2,5.5758]
[1740017525414,0.00550529,2726.5,2726.3,0.73363]
[1740017525614,0.00550529,2726.5,2726.2,6.30946]
[1740017526113,0.00550529,2726.5,2726.3,0.73364]
[1740017526301,0.00550529,2726.5,2726.2,5.5758]
[1740017526506,0.00550529,2726.5,2726.4,0.73362]
[1740017527113,0.73348,2727.0,2726.5,0.73357]
[1740017527313,0.7335,2726.9,2726.6,4.3386]
[1740017527513,3.2078,2727.1,2726.7,0.73353]
[1740017527709,3.2078,2727.1,2726.7,1.28343]
[1740017527901,3.94125,2727.1,2726.7,1.28343]
[1740017528216,3.94126,2727.1,2726.7,1.28343]
[1740017528417,0.73348,2727.0,2726.7,42.08344]
[1740017528812,0.7335,2726.9,2726.7,41.3499]
[1740017529209,3.2078,2727.1,2726.7,41.3499]
[1740017529407,0.73348,2727.0,2726.7,41.3499]
[1740017529909,0.73348,2727.0,2726.7,0.5499]
[1740017530109,0.73348,2727.0,2726.7,1.28343]
[1740017530309,0.73348,2727.0,2726.7,0.5499]
[1740017530712,0.73348,2727.0,2726.7,1.28343]
[1740017531215,3.94124,2727.1,2726.7,1.28343]
[1740017531918,0.73344,2727.1,2726.7,1.28343]
[1740017532118,0.73344,2727.1,2726.7,0.5499]
[1740017532320,0.73344,2727.1,2726.7,1.28343]
[1740017532519,0.73344,2727.1,2726.9,3.2078]
[1740017532718,2.39233529,2727.2,2726.9,3.2078]
[1740017533016,2.39233529,2727.2,2726.9,3.5026984]
[1740017533211,1.65890529,2727.2,2726.9,3.5026984]
[1740017533422,0.73344,2727.1,2726.9,3.5026984]
[1740017533616,0.73344,2727.1,2726.9,4.2361884]
[1740017533816,2.39232529,2727.2,2726.9,4.2361884]
[1740017534121,1.65890529,2727.2,2726.9,4.2361784]
[1740017534322,1.65890529,2727.2,2726.9,4.2361684]
[1740017535114,2.39231529,2727.2,2726.9,4.2361684]
[1740017535314,1.65890529,2727.2,2726.9,3.5026984]
[1740017535718,1.65890529,2727.2,2727.0,0.73346]
[1740017535915,1.65890529,2727.2,2726.9,3.5026984]
[1740017536215,1.65890529,2727.2,2727.0,0.73345]
[1740017536512,0.00550529,2727.2,2726.9,3.5026984]
[1740017536716,0.00550529,2727.2,2727.1,0.73343]
[1740017537613,0.00550529,2727.2,2727.1,3.10143]
[1740017542223,1.1343,2727.7,2727.5,0.73332]
[1740017542412,1.1343,2727.7,2727.4,0.73333]
[1740017542927,1.1343,2727.7,2727.5,0.73332]
[1740017543216,1.1343,2727.7,2727.3,3.2078]
[1740017543424,1.1343,2727.7,2727.5,0.73333]
[1740017543722,1.1343,2727.7,2727.4,41.53333]
[1740017544017,1.1343,2727.7,2727.5,0.73332]
[1740017544324,0.73314,2728.2,2727.8,0.73323]
[1740017544525,0.535,2728.0,2727.9,3.2078]
[1740017546024,0.5887,2728.1,2727.9,3.2078]
[1740017546220,1.1237,2728.1,2727.9,3.2078]
[1740017546924,1.1237,2728.1,2727.9,3.94102]
[1740017547112,1.1237,2728.1,2727.9,6.30802]
[1740017547318,1.1237,2728.1,2728.0,0.73319]
[1740017548223,1.1237,2728.1,2727.9,6.308]
[1740017548516,0.5525,2728.2,2728.1,0.73316]
[1740017548716,0.7331,2728.4,2727.9,5.5748]
[1740017548921,0.73309,2728.4,2728.2,3.2078]
[1740017549122,0.7331,2728.4,2727.9,6.31350529]
[1740017549425,0.73303,2728.6,2728.2,3.2078]
[1740017549721,0.73306,2728.5,2728.2,3.2078]
[1740017550027,1.6452,2728.7,2728.2,3.2078]
[1740017550519,0.73308,2728.5,2728.2,3.94093]
[1740017551025,0.73305,2728.6,2728.2,3.94093]
[1740017551622,1.6452,2728.7,2728.2,3.2078]
[1740017551930,0.73307,2728.5,2728.2,3.2078]
[1740017552218,0.73311,2728.3,2728.2,3.2078]
[1740017552421,1.6452,2728.7,2728.2,3.2078]
[1740017552626,0.73311,2728.3,2728.2,3.2078]
[1740017553325,0.73307,2728.5,2728.2,3.94093]
[1740017554325,0.73311,2728.4,2728.2,3.2078]
[1740017554528,4.0122,2728.7,2728.2,3.2078]
[1740017554718,0.73311,2728.3,2728.2,3.2078]
[1740017555524,0.73307,2728.5,2728.3,0.73311]
[1740017555726,1.6452,2728.7,2728.2,5.5748]
[1740017556132,2.3782,2728.7,2728.4,0.73307]
[1740017556429,1.6452,2728.7,2728.4,0.73307]
[1740017556729,1.6452,2728.7,2728.2,5.5748]
[1740017557218,0.73305,2728.6,2728.2,6.30792]
[1740017557422,1.6452,2728.7,2728.2,5.5748]
[1740017557623,0.73306,2728.5,2728.2,5.5748]
[1740017557930,1.6452,2728.7,2728.2,5.5748]
[1740017558122,0.73305,2728.6,2728.2,6.30792]
[1740017558723,0.73305,2728.6,2728.3,0.73311]
[1740017559129,1.6452,2728.7,2728.3,0.5647]
[1740017559324,0.73311,2728.3,2728.2,5.5778]
[1740017559723,1.6452,2728.7,2728.2,5.5778]
[1740017560436,0.73311,2728.3,2728.2,5.5778]
[1740017561429,0.73311,2728.3,2728.2,3.2078]
[1740017561623,0.73314,2728.3,2728.0,2.371]
[1740017561835,1.27704,2728.2,2728.0,2.371]
[1740017562132,1.85634,2728.2,2728.0,2.371]
[1740017562833,1.1232,2728.2,2728.0,3.10419]
[1740017563034,1.1232,2728.2,2728.0,2.371]
[1740017563628,1.85635,2728.2,2728.0,2.371]
[1740017564436,1.1232,2728.2,2728.0,2.371]
[1740017564730,0.73316,2728.1,2728.0,2.371]
[1740017564935,0.73318,2728.1,2727.9,5.58130529]
[1740017565232,0.73318,2728.1,2727.9,3.21330529]
[1740017565732,0.73319,2728.0,2727.9,3.21330529]
[1740017567134,1.6617,2728.2,2727.9,3.21330529]
[1740017567435,0.73319,2728.0,2727.9,0.00550529]
[1740017573029,4.8695,2728.2,2727.9,0.00550529]
[1740017573232,0.73319,2728.0,2727.9,0.00550529]
[1740017573442,0.73319,2728.1,2727.9,0.00550529]
[1740017573633,0.73316,2728.1,2727.9,0.00550529]
[1740017574141,0.73319,2728.0,2727.9,0.00550529]
[1740017575738,1.6617,2728.2,2727.9,0.00550529]
[1740017575933,1.6617,2728.2,2727.9,3.21330529]
[1740017576343,1.1232,2728.2,2727.9,3.21330529]
[1740017576544,1.7045,2728.5,2728.0,0.73319]
[1740017576938,0.7331,2728.4,2728.0,0.73319]
[1740017577243,0.73311,2728.3,2728.0,0.73319]
[1740017577439,1.7045,2728.5,2728.0,0.73319]
[1740017577741,0.7331,2728.4,2728.0,0.73319]
[1740017578338,2.43757,2728.5,2728.0,0.73319]
[1740017578645,1.7045,2728.5,2728.0,0.73319]
[1740017579147,0.7331,2728.4,2728.0,0.73319]
[1740017579841,0.73312,2728.3,2727.9,3.94650529]
[1740017580437,0.73312,2728.3,2728.0,40.8]
[1740017580842,0.73312,2728.3,2728.0,41.53319]
[1740017581046,0.7331,2728.4,2728.0,41.53319]
[1740017582345,0.7331,2728.4,2728.0,0.73319]
[1740017583139,0.7331,2728.4,2727.9,3.21330529]
[1740017583339,0.7331,2728.4,2728.1,0.73316]
[1740017583846,0.7331,2728.4,2728.2,0.5436]
[1740017585944,2.43757,2728.5,2728.2,3.7514]
[1740017586244,2.43757,2728.5,2728.2,0.5436]
[1740017586245,0.73309,2728.4,2728.2,0.5436]
[1740017588045,0.73311,2728.3,2728.2,0.5436]
[1740017588648,0.7331,2728.4,2728.2,0.5436]
[1740017589941,1.7045,2728.5,2728.2,0.5436]
[1740017590141,0.73311,2728.3,2728.2,0.5436]
[1740017592348,0.73311,2728.4,2728.2,0.5436]
[1740017592544,1.7045,2728.5,2728.3,3.94089]
[1740017592749,1.1625,2728.5,2728.4,0.73308]
[1740017593043,1.1625,2728.5,2728.3,4.50949]
[1740017593649,0.73308,2728.4,2728.3,3.2078]
[1740017593953,1.31678,2728.4,2728.3,3.2078]
[1740017605555,0.73315,2728.2,2728.0,5.06558]
[1740017605756,0.73315,2728.2,2728.0,4.3324]
[1740017606156,0.5837,2728.4,2728.0,4.3324]
[1740017606361,0.73316,2728.1,2728.0,4.3324]
[1740017606861,0.73316,2728.2,2728.0,5.06558]
[1740017607362,0.73316,2728.1,2728.0,3.7638]
[1740017607556,0.73319,2728.0,2727.9,0.00550529]
[1740017607760,0.5723,2728.1,2727.9,0.00550529]
[1740017607960,0.5723,2728.1,2727.9,0.73870529]
[1740017608257,0.5837,2728.4,2728.0,3.2078]
[1740017608464,1.31679,2728.4,2728.1,0.5377]
[1740017608950,1.3168,2728.4,2728.1,0.5377]
[1740017609152,0.5723,2728.8,2728.3,3.2078]
[1740017609360,3.2078,2729.6,2728.6,3.2078]
[1740017609558,6.6924,2729.6,2728.9,3.2078]
[1740017609758,0.73294,2729.0,2728.7,1.1075]
[1740017609960,2.43685,2728.9,2728.7,0.5698]
[1740017610169,1.7039,2728.9,2728.6,3.2078]
[1740017610464,0.73298,2728.8,2728.6,3.2078]
[1740017611363,0.73299,2728.8,2728.6,3.2078]
[1740017611864,2.43687,2728.9,2728.6,3.2078]
[1740017612457,1.7039,2728.9,2728.6,3.2078]
[1740017612659,0.73299,2728.8,2728.6,3.2078]
[1740017612961,2.43686,2728.9,2728.6,3.2078]
[1740017613966,1.7039,2728.9,2728.6,3.2078]
[1740017614164,2.43685,2728.9,2728.6,3.2078]
[1740017615262,1.7039,2728.9,2728.6,3.2078]
[1740017615467,2.43686,2728.9,2728.6,3.2078]
[1740017616260,1.7039,2728.9,2728.6,3.2078]
[1740017616461,0.73298,2728.8,2728.6,3.2078]
[1740017616661,1.7039,2728.9,2728.6,3.2078]
[1740017616962,0.733,2728.7,2728.6,3.2078]
[1740017620466,0.73309,2728.4,2728.2,3.7747]
[1740017622170,7.0299,2728.9,2728.2,3.7747]
[1740017622370,0.7331,2728.4,2728.2,3.7747]
[1740017622973,7.0299,2728.9,2728.2,3.7747]
[1740017623275,0.73311,2728.3,2728.2,3.7747]
[1740017624864,0.73311,2728.4,2728.2,3.7747]
[1740017625273,0.73311,2728.3,2728.2,3.7747]
[1740017626471,0.7331,2728.4,2728.2,3.7747]
[1740017627475,1.7039,2728.9,2728.2,3.7747]
[1740017627674,0.73302,2728.7,2728.2,3.7747]
[1740017627875,1.7039,2728.9,2728.5,3.2078]
[1740017628073,0.733,2728.7,2728.6,1.6793]
[1740017628269,1.7039,2728.9,2728.6,1.6793]
[1740017628573,1.7039,2728.9,2728.6,2.41233]
[1740017628574,0.73295,2728.9,2728.6,2.41233]
[1740017628774,0.73297,2728.9,2728.6,1.6793]
[1740017628968,0.73297,2728.9,2728.6,2.41232]
[1740017629577,0.73292,2729.0,2728.6,2.41232]
[1740017629971,1.681,2729.2,2728.6,1.6793]
[1740017630178,1.681,2729.2,2728.8,3.94076]
[1740017630376,2.41388,2729.2,2728.8,3.94076]
[1740017630972,1.681,2729.2,2728.8,3.2078]
[1740017631178,0.73291,2729.1,2728.8,3.2078]
[1740017631574,0.73291,2729.1,2728.8,3.49331208]
[1740017631876,0.73294,2729.0,2728.8,3.2078]
[1740017632482,0.73294,2729.0,2728.8,3.49855003]
[1740017633689,2.41388,2729.2,2728.8,3.49855003]
[1740017633891,0.7329,2729.1,2728.8,3.49855003]
[1740017634185,3.2078,2729.6,2729.1,0.73288]
[1740017634383,0.551,2729.5,2729.1,0.73288]
[1740017634684,0.551,2729.5,2729.2,1.7102]
[1740017635581,1.2838,2729.5,2729.2,1.7102]
[1740017636282,5.5738,2730.0,2729.2,4.918]
[1740017636584,0.73275,2729.7,2729.2,4.918]
[1740017636890,0.73277,2729.6,2729.3,2.37149501]
[1740017637888,0.73282,2729.4,2729.3,0.00549501]
[1740017639681,3.09882,2729.4,2729.3,0.00549501]
[1740017640490,3.67882,2729.4,2729.3,0.00549501]
[1740017643987,1.31282,2729.4,2729.3,0.00549501]
[1740017652592,0.73282,2729.4,2729.3,0.00549501]
[1740017653395,7.94585,2729.7,2729.3,0.00549501]
[1740017653396,3.749,2729.7,2729.3,0.00549501]
[1740017653591,0.73282,2729.4,2729.3,0.59389501]
[1740017654591,1.121,2729.7,2729.3,0.59389501]
[1740017654798,0.73279,2729.5,2729.4,0.5459]
[1740017655189,1.121,2729.7,2729.3,0.59389501]
[1740017655390,0.5406,2729.9,2729.3,0.59389501]
[1740017655594,1.1035,2730.2,2729.8,3.2078]
[1740017655794,1.1035,2730.2,2729.9,0.5732]
[1740017655997,1.83612,2730.2,2729.9,1.1331]
[1740017656192,1.1035,2730.2,2729.9,1.1331]
[1740017656693,0.73265,2730.0,2729.9,1.1331]
[1740017656900,1.1035,2730.2,2729.5,3.2078]
[1740017657192,3.2078,2730.6,2729.6,3.7677]
[1740017657399,5.5728,2730.9,2729.9,3.2078]
[1740017657599,0.73258,2730.3,2730.0,1.7223]
[1740017657790,0.5363,2730.5,2730.0,1.7223]
[1740017657987,0.586,2730.4,2730.0,1.1576]
[1740017658296,0.73263,2730.1,2730.0,0.5732]
[1740017661597,0.73265,2730.0,2729.9,3.2078]
[1740017661908,1.86595,2730.0,2729.9,3.2078]
[1740017663593,0.557,2730.3,2729.9,3.2078]
[1740017663594,0.7326,2730.2,2729.9,3.2078]
[1740017664103,0.73263,2730.1,2729.9,3.2078]
[1740017664501,0.557,2730.3,2729.9,3.2078]
[1740017665999,0.73265,2730.0,2729.9,3.2078]
[1740017666204,0.557,2730.3,2729.9,3.2078]
[1740017666400,0.73265,2730.0,2729.9,3.2078]
[1740017667103,0.557,2730.3,2729.9,3.2078]
[1740017668395,0.73265,2730.0,2729.9,3.2078]
[1740017669096,0.557,2730.3,2729.9,3.2078]
[1740017669303,0.73265,2730.0,2729.9,3.2078]
[1740017677412,0.73271,2729.8,2729.7,0.5844]
[1740017677807,1.86709,2729.9,2729.7,0.5844]
[1740017678015,0.567,2730.4,2729.8,0.7327]
[1740017678213,2.365,2730.3,2729.9,4.3048]
[1740017678409,3.09758,2730.3,2729.9,4.3048]
[1740017678605,3.0976,2730.3,2729.9,4.3048]
[1740017678905,0.73264,2730.1,2729.9,4.3048]
[1740017679109,2.365,2730.3,2729.9,4.3048]
[1740017679305,0.567,2730.4,2729.9,4.3048]
[1740017679616,0.73265,2730.0,2729.9,4.3048]
[1740017679819,0.567,2730.4,2729.9,4.3048]
[1740017680010,0.73265,2730.0,2729.9,4.3048]
[1740017680209,0.567,2730.4,2729.9,4.3048]
[1740017680410,0.73265,2730.0,2729.9,4.3048]
[1740017684520,0.567,2730.4,2729.9,5.03747]
[1740017684814,0.73261,2730.2,2729.9,4.3048]
[1740017685018,0.73261,2730.2,2729.9,5.03747]
[1740017685817,0.567,2730.4,2729.9,5.03748]
[1740017686117,0.73261,2730.2,2729.9,5.03748]
[1740017686812,0.73259,2730.3,2730.0,0.73264]
[1740017687120,0.7326,2730.2,2729.9,5.03746]
[1740017688611,0.73261,2730.2,2729.9,4.3048]
[1740017688811,0.73258,2730.3,2730.0,0.73265]
[1740017689014,1.7248,2730.6,2729.9,4.3048]
[1740017689219,1.7248,2730.6,2730.2,3.2078]
[1740017689418,1.7248,2730.6,2730.3,1.7146]
[1740017689912,0.73255,2730.4,2730.3,1.7146]
[1740017693719,0.73255,2730.4,2730.3,2.00242283]
[1740017694319,0.73255,2730.4,2730.3,1.7146]
[1740017696221,0.5477,2730.9,2730.3,2.01137069]
[1740017696420,0.73249,2730.7,2730.3,2.74392069]
[1740017696617,0.73249,2730.7,2730.3,2.01137069]
[1740017696925,0.73249,2730.7,2730.5,3.2078]
[1740017697118,1.83867,2731.1,2730.5,3.94031]
[1740017697326,0.73241,2730.9,2730.5,3.94031]
[1740017697623,0.73244,2730.8,2730.5,3.94031]
[1740017697818,0.73243,2730.9,2730.5,3.94031]
[1740017698019,1.1063,2731.1,2730.5,3.2078]
[1740017698220,1.29548,2731.1,2730.8,3.2078]
[1740017698422,0.5631,2731.1,2730.9,1.7006]
[1740017698927,0.73235,2731.2,2730.9,1.7006]
[1740017699226,0.73237,2731.1,2730.9,1.7006]
[1740017699718,0.73239,2731.0,2730.9,1.7006]
[1740017700115,0.73239,2731.0,2730.9,0.5911]
[1740017700319,0.73241,2730.9,2730.8,3.2078]
[1740017700628,1.32031,2730.9,2730.8,3.2078]
[1740017701220,0.5879,2730.9,2730.7,0.00549501]
[1740017701425,6.30424,2730.8,2730.7,0.00549501]
[1740017701629,7.40364,2730.8,2730.7,0.00549501]
[1740017701823,4.19584,2730.8,2730.7,0.00549501]
[1740017702127,7.40364,2730.8,2730.7,0.00549501]
[1740017702327,1.0994,2730.8,2730.7,0.00549501]
[1740017702522,0.5879,2730.9,2730.7,0.00549501]
[1740017702729,0.73244,2730.8,2730.7,0.00549501]
[1740017704223,3.94024,2730.8,2730.7,0.00549501]
[1740017707633,9.2078,2730.8,2730.1,3.2078]
[1740017707828,1.8314,2730.4,2729.9,0.5652]
[1740017708026,0.73265,2730.0,2729.9,0.5652]
[1740017709729,1.1254,2730.3,2729.8,3.2078]
[1740017709930,0.73268,2729.9,2729.8,3.2078]
[1740017710930,2.96,2730.3,2729.8,3.9405]
[1740017711128,2.96,2730.3,2729.9,0.5763]
[1740017711328,0.73265,2730.0,2729.9,0.5763]
[1740017712730,0.73268,2729.9,2729.8,3.2078]
[1740017713425,0.73271,2729.8,2729.7,0.00549501]
[1740017713626,1.673,2730.2,2729.7,4.52552501]
[1740017713826,0.73263,2730.1,2730.0,3.2078]
[1740017716127,0.73268,2729.9,2729.8,0.5627]
[1740017718335,0.73271,2729.8,2729.7,0.58499501]
[1740017718536,1.86391,2729.8,2729.7,0.58499501]
[1740017726539,1.86391,2729.8,2729.7,0.00549501]
[1740017726843,3.2078,2730.3,2729.7,0.00549501]
[1740017727045,2.385,2730.3,2729.7,0.56709501]
[1740017727242,0.73271,2729.8,2729.7,0.56709501]
[1740017728639,0.73271,2729.8,2729.7,0.00549501]
[1740017729135,4.2836,2730.0,2729.7,0.00549501]
[1740017729443,0.73271,2729.8,2729.7,0.00549501]
[1740017729646,1.83123,2730.7,2729.7,0.00549501]
[1740017729647,3.2078,2730.8,2729.7,0.00549501]
[1740017729848,3.2078,2730.8,2730.0,3.2078]
[1740017730038,3.2078,2730.8,2730.1,0.5851]
[1740017730237,2.419,2730.7,2730.1,1.6782]
[1740017730446,0.7326,2730.2,2730.1,1.6782]
[1740017731249,0.7326,2730.2,2730.1,0.5851]
[1740017732347,0.73265,2730.0,2729.9,0.5758]
[1740017733148,0.73271,2729.8,2729.7,0.00549501]
[1740017733645,0.73271,2729.8,2729.7,0.57769501]
[1740017735753,2.9918,2730.1,2729.7,0.57769501]
[1740017736050,0.73265,2730.0,2729.9,3.2078]
[1740017738055,1.86935,2730.0,2729.9,3.2078]
[1740017741254,2.9828,2730.1,2729.9,3.2078]
[1740017741457,2.96,2730.3,2729.9,3.2078]
[1740017741660,0.73262,2730.2,2729.9,3.2078]
[1740017741856,0.73263,2730.1,2729.9,3.2078]
[1740017742156,5.369,2730.3,2729.9,3.2078]
[1740017742357,0.73265,2730.0,2729.9,3.2078]
[1740017744255,0.73268,2729.9,2729.8,0.5445]
[1740017744449,0.73271,2729.8,2729.7,0.00549501]
[1740017744761,0.73268,2729.9,2729.8,1.1053]
[1740017744955,0.73268,2729.9,2729.8,4.3131]
[1740017745163,0.73268,2729.9,2729.7,0.00549501]
[1740017745164,0.73271,2729.8,2729.7,0.00549501]
[1740017745661,0.73271,2729.8,2729.7,0.54959501]
[1740017745962,0.73271,2729.8,2729.7,1.09639501]
[1740017746447,2.413,2730.1,2729.7,4.30419501]
[1740017746651,0.73271,2729.8,2729.7,4.30419501]
[1740017749962,0.73271,2729.8,2729.7,1.09639501]
[1740017750462,0.73271,2729.8,2729.7,0.55229501]
[1740017753062,0.73271,2729.8,2729.7,3.76009501]
[1740017756257,0.73271,2729.8,2729.7,0.55229501]
[1740017756459,0.73271,2729.8,2729.7,3.76009501]
[1740017756659,0.73271,2729.8,2729.7,0.55229501]
[1740017758166,0.73271,2729.8,2729.7,0.00549501]
[1740017758562,1.1511,2730.1,2729.7,3.21329501]
[1740017758865,1.1511,2730.1,2729.8,0.5746]
[1740017759167,0.73271,2729.8,2729.7,0.00549501]
[1740017760265,3.5511,2730.1,2729.7,3.21329501]
[1740017760468,0.73271,2729.8,2729.7,3.21329501]
[1740017760668,3.5511,2730.1,2729.7,3.21329501]
[1740017760872,1.1511,2730.1,2729.7,3.21329501]
[1740017761764,0.5629,2730.1,2729.7,3.21329501]
[1740017762068,0.73259,2730.3,2729.7,3.94601501]
[1740017762567,0.73266,2730.0,2729.7,3.94601501]
[1740017762870,2.40239,2730.4,2729.7,3.21329501]
[1740017763064,0.73271,2729.8,2729.7,3.21329501]
[1740017764671,2.40239,2730.4,2729.7,3.21329501]